lending/lending_fUSD_20240401
["ID","MTS","AMOUNT","RATE_DAILY","PERIOD"]
[321232736,1712004639161,-2698.48,0.0005,30]
[321232737,1712004639170,-500.0,0.0005,2]
[321232738,1712004639179,-171.54,0.00050025,2]
[321232739,1712004639189,-264.90152903,0.00050517,14]
[321232740,1712004639198,-1521.29171865,0.00050532,2]
[321232741,1712004639207,-1429.25000458,0.00051062,27]
[321232742,1712004639217,-435.56,0.00051137,2]
[321232743,1712004639227,-7896.5233107,0.00051222,2]
[321232744,1712004639237,-151.0,0.00051233,120]
[321232745,1712004639246,-812.85490941,0.00051263,4]
[321232746,1712004639256,-4313.52466601,0.00052,2]
[321232747,1712004639265,-500.0,0.00052054,60]
[321232748,1712004639275,-153.75644146,0.00052055,120]
[321232749,1712004639285,-153.75644142,0.00052055,120]
[321232750,1712004639294,-1389.33,0.00052558,120]
[321232751,1712004639304,-328.80906049,0.00052602,60]
[321232752,1712004639313,-264.90152903,0.00052863,14]
[321232753,1712004639322,-1429.25000458,0.00053039,30]
[321232754,1712004639331,-7896.5233107,0.00053158,2]
[321232755,1712004639341,-153.75644146,0.00053205,120]
[321232756,1712004639352,-373.28412426,0.00053246,2]
[321232758,1712004639362,-435.56,0.00053401,2]
[321232759,1712004639372,-1030.51,0.00053719,120]
[321232760,1712004639383,-1521.29171865,0.00053988,2]
[321232761,1712004639393,-3370.51364512,0.00054,2]
[321232762,1712004639402,-809.44,0.00054193,120]
[321232763,1712004639412,-153.75644146,0.00054329,120]
[321232764,1712004639421,-151.0,0.00054466,120]
[321232765,1712004639431,-6965.0,0.0005449,15]
[321232766,1712004639440,-500.0,0.00054794,120]
[321232767,1712004639449,-500.0,0.00054794,120]
[321232768,1712004639459,-500.0,0.00054794,120]
[321232770,1712004639469,-251.56183055,0.00054794,120]
[321232771,1712004639478,-152.24416246,0.00054794,120]
[321232773,1712004639488,-490.0,0.00054794,120]
[321232775,1712004639497,-500.0,0.00054794,120]
[321232776,1712004639507,-500.0,0.00054794,120]
[321232778,1712004639516,-500.0,0.00054794,120]
[321232779,1712004639526,-500.0,0.00054794,120]
[321232780,1712004639535,-500.0,0.00054794,120]
[321232781,1712004639544,-500.0,0.00054794,120]
[321232782,1712004639553,-500.0,0.00054794,120]
[321232783,1712004639562,-255.7719572,0.00054794,30]
[321232784,1712004639571,-500.0,0.00054794,120]
[321232785,1712004639580,-500.0,0.00054794,120]
[321232786,1712004639589,-547.06616041,0.00054794,120]
[321232787,1712004639601,-563.01428435,0.00054794,120]
[321232789,1712004639610,-500.0,0.00054794,120]
[321232791,1712004639620,-557.79670344,0.00054794,120]
[321232793,1712004639629,-500.0,0.00054794,120]
[321232795,1712004639638,-500.0,0.00054794,120]
[321232797,1712004639648,-500.0,0.00054794,120]
[321232799,1712004639657,-500.0,0.00054794,120]
[321232801,1712004639667,-500.0,0.00054794,120]
[321232803,1712004639676,-551.7,0.00054794,120]
[321232805,1712004639685,-500.0,0.00054794,30]
[321232807,1712004639694,-500.0,0.00054794,120]
[321232809,1712004639704,-471.91678013,0.00054794,120]
[321232811,1712004639713,-521.37008215,0.00054794,120]
[321232813,1712004639723,-500.0,0.00054794,120]
[321232815,1712004639732,-500.0,0.00054794,120]
[321232817,1712004639742,-500.0,0.00054794,120]
[321232819,1712004639751,-500.0,0.00054794,120]
[321232821,1712004639760,-224.65017554,0.00054794,120]
[321232823,1712004639770,-500.0,0.00054794,120]
[321232825,1712004639779,-5896.0,0.00054794,120]
[321232827,1712004639788,-520.35266118,0.00054794,120]
[321232829,1712004639797,-500.0,0.00054794,120]
[321232831,1712004639806,-500.0,0.00054794,120]
[321232833,1712004639815,-310.10836869,0.00054794,120]
[321232835,1712004639825,-7900.54,0.00054794,120]
[321232836,1712004639837,-500.0,0.00054794,120]
[321232837,1712004639846,-500.0,0.00054794,120]
[321232838,1712004639856,-500.0,0.00054794,120]
[321232839,1712004639865,-500.0,0.00054794,120]
[321232840,1712004639874,-533.18335895,0.00054794,120]
[321232841,1712004639883,-500.0,0.00054794,30]
[321232842,1712004639892,-500.0,0.00054794,120]
[321232843,1712004639902,-500.0,0.00054794,120]
[321232844,1712004639911,-500.0,0.00054794,120]
[321232845,1712004639920,-500.0,0.00054794,120]
[321232846,1712004639930,-550.12051775,0.00054794,120]
[321232847,1712004639939,-500.0,0.00054794,120]
[321232848,1712004639948,-500.0,0.00054794,120]
[321232849,1712004639957,-500.0,0.00054794,120]
[321232850,1712004639966,-500.0,0.00054794,120]
[321232851,1712004639975,-500.0,0.00054794,120]
[321232852,1712004639984,-519.86387622,0.00054794,120]
[321232853,1712004639994,-500.0,0.00054794,120]
[321232854,1712004640003,-500.0,0.00054794,120]
[321232855,1712004640012,-500.0,0.00054794,120]
[321232856,1712004640021,-500.0,0.00054794,120]
[321232857,1712004640031,-500.0,0.00054794,120]
[321232858,1712004640042,-500.0,0.00054794,120]
[321232859,1712004640051,-1088.97,0.00054794,120]
[321232860,1712004640060,-558.01796406,0.00054794,120]
[321232861,1712004640069,-500.0,0.00054794,120]
[321232862,1712004640079,-500.0,0.00054794,120]
[321232863,1712004640088,-500.0,0.00054794,120]
[321232864,1712004640099,-500.0,0.00054794,120]
[321232865,1712004640108,-500.0,0.00054794,120]
[321232866,1712004640117,-508.21974292,0.00054794,120]
[321232867,1712004640126,-500.0,0.00054794,120]
[321232868,1712004640136,-500.0,0.00054794,120]
[321232869,1712004640145,-500.0,0.00054794,120]
[321232870,1712004640155,-500.0,0.00054794,120]
[321232871,1712004640163,-500.0,0.00054794,120]
[321232872,1712004640173,-500.0,0.00054794,120]
[321232873,1712004640182,-500.0,0.00054794,120]
[321232874,1712004640191,-500.0,0.00054794,120]
[321232875,1712004640201,-21137.28,0.00054794,120]
[321232876,1712004640210,-500.0,0.00054794,120]
[321232877,1712004640220,-500.0,0.00054794,120]
[321232878,1712004640230,-500.0,0.00054794,120]
[321232879,1712004640239,-500.0,0.00054794,120]
[321232880,1712004640249,-500.0,0.00054794,120]
[321232881,1712004640259,-500.0,0.00054794,120]
[321232882,1712004640268,-526.04516511,0.00054794,120]
[321232883,1712004640278,-500.0,0.00054794,120]
[321232884,1712004640287,-500.0,0.00054794,120]
[321232885,1712004640297,-500.0,0.00054794,120]
[321232886,1712004640306,-500.0,0.00054794,120]
[321232887,1712004640315,-500.0,0.00054794,2]
[321232888,1712004640325,-500.0,0.00054794,120]
[321232889,1712004640334,-500.0,0.00054794,120]
[321232890,1712004640343,-500.0,0.00054794,120]
[321232891,1712004640352,-500.0,0.00054794,120]
[321232892,1712004640361,-500.0,0.00054794,120]
[321232893,1712004640370,-500.0,0.00054794,120]
[321232894,1712004640382,-500.0,0.00054794,120]
[321232895,1712004640392,-500.0,0.00054794,120]
[321232896,1712004640401,-460.87367805,0.00054794,120]
[321232897,1712004640410,-518.38271204,0.00054794,120]
[321232898,1712004640420,-500.0,0.00054794,120]
[321232899,1712004640430,-500.0,0.00054794,120]
[321232900,1712004640439,-518.53604697,0.00054794,120]
[321232901,1712004640449,-500.0,0.00054794,120]
[321232902,1712004640460,-500.0,0.00054794,120]
[321232903,1712004640469,-500.0,0.00054794,120]
[321232904,1712004640478,-6472.98,0.00054794,120]
[321232905,1712004640487,-151.0,0.00054795,120]
[321232906,1712004640496,-190.56,0.00054804,120]
[321232907,1712004640505,-500.0,0.00055,7]
[321232908,1712004640514,-1429.25000458,0.00055015,32]
[321232909,1712004640524,-163.60438314,0.00055065,2]
[321232910,1712004640533,-155.161592,0.00055068,120]
[321232911,1712004640542,-500.0,0.00055068,120]
[321232912,1712004640551,-151.0,0.00055068,7]
[321232913,1712004640560,-151.0,0.00055068,30]
[321232914,1712004640570,-151.0,0.00055068,120]
[321232915,1712004640579,-204.19854,0.00055068,120]
[321232916,1712004640588,-151.0,0.00055068,120]
[321232917,1712004640598,-151.0,0.00055068,120]
[321232918,1712004640607,-500.0,0.00055068,120]
[321232919,1712004640616,-500.0,0.00055068,120]
[321232920,1712004640625,-500.0,0.00055068,120]
[321232921,1712004640635,-5896.0,0.00055068,120]
[321232922,1712004640644,-7900.54,0.00055068,120]
[321232923,1712004640654,-500.0,0.00055068,120]
[321232924,1712004640663,-1088.97,0.00055068,120]
[321232925,1712004640673,-21137.28,0.00055068,120]
[321232926,1712004640682,-500.0,0.00055068,120]
[321232927,1712004640691,-151.0,0.00055068,120]
[321232928,1712004640699,-6472.98,0.00055068,120]
[321232929,1712004640710,-7896.5233107,0.00055093,2]
[321232930,1712004640719,-581.10613354,0.00055198,120]
[321232931,1712004640729,-500.0,0.00055198,120]
[321232932,1712004640739,-577.5762977,0.00055198,120]
[321232933,1712004640748,-500.0,0.00055198,2]
[321232934,1712004640757,-264.90152903,0.00055209,14]
[321232935,1712004640767,-151.99,0.00055332,120]
[321232936,1712004640776,-159.437046,0.00055342,120]
[321232937,1712004640785,-500.0,0.00055342,120]
[321232938,1712004640795,-151.0,0.00055342,120]
[321232939,1712004640804,-500.0,0.00055342,120]
[321232940,1712004640814,-500.0,0.00055342,120]
[321232941,1712004640823,-500.0,0.00055342,120]
[321232942,1712004640833,-151.0,0.00055342,120]
[321232943,1712004640842,-5896.0,0.00055342,120]
[321232944,1712004640852,-7900.54,0.00055342,120]
[321232945,1712004640861,-500.0,0.00055342,120]
[321232946,1712004640872,-1088.97,0.00055342,120]
[321232947,1712004640881,-352.315462,0.00055342,120]
[321232948,1712004640890,-352.315462,0.00055342,120]
[321232949,1712004640900,-21137.28,0.00055342,120]
[321232950,1712004640910,-500.0,0.00055342,120]
[321232951,1712004640919,-6472.98,0.00055342,120]
[321232952,1712004640929,-153.75644146,0.00055479,120]
[321232953,1712004640938,-156.0,0.00055586,15]
[321232954,1712004640948,-284.16,0.00055586,15]
[321232955,1712004640957,-150.5,0.00055596,15]
[321232956,1712004640967,-150.5,0.00055596,15]
[321232957,1712004640976,-185.27337934,0.00055606,2]
[321232958,1712004640985,-150.5,0.00055606,15]
[321232959,1712004640995,-150.5,0.00055606,15]
[321232960,1712004641005,-500.0,0.00055616,120]
[321232961,1712004641014,-151.0,0.00055616,7]
[321232962,1712004641024,-151.0,0.00055616,30]
[321232963,1712004641033,-151.0,0.00055616,120]
[321232964,1712004641042,-151.0,0.00055616,120]
[321232965,1712004641051,-151.0,0.00055616,120]
[321232966,1712004641060,-500.0,0.00055616,120]
[321232967,1712004641070,-500.0,0.00055616,120]
[321232968,1712004641079,-303.05,0.00055616,120]
[321232969,1712004641089,-5896.0,0.00055616,120]
[321232970,1712004641098,-7900.54,0.00055616,120]
[321232971,1712004641108,-500.0,0.00055616,120]
[321232972,1712004641118,-1088.97,0.00055616,120]
[321232973,1712004641127,-21137.28,0.00055616,120]
[321232974,1712004641137,-500.0,0.00055616,120]
[321232975,1712004641146,-151.0,0.00055616,120]
[321232976,1712004641156,-6472.98,0.00055616,120]
[321232977,1712004641165,-435.56,0.00055665,2]
[321232978,1712004641174,-150.5,0.0005586,15]
[321232979,1712004641183,-150.5,0.0005587,15]
[321232980,1712004641193,-150.5,0.0005588,15]
[321232981,1712004641202,-310041.14689502,0.0005589,36]
[321232982,1712004641211,-500.0,0.0005589,120]
[321232983,1712004641221,-500.0,0.0005589,120]
[321232984,1712004641230,-500.0,0.0005589,120]
[321232985,1712004641240,-5896.0,0.0005589,120]
[321232986,1712004641249,-7900.54,0.0005589,120]
[321232987,1712004641259,-500.0,0.0005589,120]
[321232988,1712004641268,-1088.97,0.0005589,120]
[321232989,1712004641279,-352.315462,0.0005589,120]
[321232990,1712004641288,-352.315462,0.0005589,120]
[321232991,1712004641297,-21137.28,0.0005589,120]
[321232992,1712004641307,-500.0,0.0005589,120]
[321232993,1712004641316,-151.0,0.0005589,120]
[321232994,1712004641325,-6472.98,0.0005589,120]
[321232995,1712004641335,-500.0,0.00056164,120]
[321232996,1712004641344,-151.0,0.00056164,120]
[321232997,1712004641355,-500.0,0.00056164,120]
[321232998,1712004641366,-516.19863046,0.00056164,120]
[321232999,1712004641376,-151.0,0.00056164,120]
[321233000,1712004641385,-5896.0,0.00056164,120]
[321233001,1712004641395,-7900.54,0.00056164,120]
[321233002,1712004641404,-500.0,0.00056164,120]
[321233003,1712004641414,-1088.97,0.00056164,120]
[321233004,1712004641424,-21137.28,0.00056164,120]
[321233005,1712004641433,-500.0,0.00056164,120]
[321233006,1712004641442,-500.0,0.00056438,120]
[321233007,1712004641452,-237.272922,0.00056438,7]
[321233008,1712004641462,-151.0,0.00056438,30]
[321233009,1712004641471,-151.0,0.00056438,120]
[321233010,1712004641481,-151.0,0.00056438,120]
[321233011,1712004641490,-151.0,0.00056438,120]
[321233012,1712004641499,-500.0,0.00056438,120]
[321233013,1712004641509,-5896.0,0.00056438,120]
[321233014,1712004641518,-7900.54,0.00056438,120]
[321233015,1712004641528,-500.0,0.00056438,120]
[321233016,1712004641537,-1088.97,0.00056438,120]
[321233017,1712004641547,-352.315462,0.00056438,120]
[321233018,1712004641557,-352.315462,0.00056438,120]
[321233019,1712004641566,-21137.28,0.00056438,120]
[321233020,1712004641575,-500.0,0.00056438,120]
[321233021,1712004641586,-373.28412426,0.0005653,2]
[321233022,1712004641595,-23211.69978528,0.0005655,2]
[321233023,1712004641606,-958.11,0.00056602,120]
[321233024,1712004641618,-153.75644146,0.0005663,120]
[321233025,1712004641627,-151.0,0.00056671,2]
[321233026,1712004641636,-151.99,0.00056702,120]
[321233027,1712004641645,-500.0,0.00056712,120]
[321233028,1712004641653,-151.0,0.00056712,120]
[321233029,1712004641662,-500.0,0.00056712,120]
[321233030,1712004641671,-5896.0,0.00056712,120]
[321233031,1712004641681,-7900.54,0.00056712,120]
[321233032,1712004641690,-500.0,0.00056712,120]
[321233033,1712004641700,-1088.97,0.00056712,120]
[321233034,1712004641709,-21137.28,0.00056712,120]
[321233035,1712004641718,-500.0,0.00056712,120]
[321233036,1712004641728,-150.0,0.00056731,14]
[321233037,1712004641737,-150.0,0.00056738,14]
[321233038,1712004641746,-150.0,0.00056739,14]
[321233039,1712004641755,-150.0,0.00056744,14]
[321233040,1712004641765,-150.0,0.00056748,14]
[321233041,1712004641892,-150.0,0.00056754,14]
[321233042,1712004641905,-300.0,0.00056754,14]
[321233043,1712004641915,-150.0,0.00056755,14]
[321233044,1712004641925,-150.0,0.00056758,14]
[321233045,1712004641934,-150.0,0.00056762,14]
[321233046,1712004641943,-1500.0,0.00056762,14]
[321233047,1712004641953,-150.0,0.00056766,14]
[321233048,1712004641963,-150.0,0.00056773,14]
[321233049,1712004641972,-150.0,0.00056773,14]
[321233050,1712004641982,-150.0,0.00056775,14]
[321233051,1712004641991,-150.0,0.00056782,14]
[321233052,1712004642000,-150.0,0.00056783,14]
[321233053,1712004642010,-150.0,0.00056783,14]
[321233054,1712004642019,-150.0,0.00056785,14]
[321233055,1712004642028,-150.0,0.00056785,14]
[321233056,1712004642038,-150.0,0.00056785,14]
[321233057,1712004642047,-150.0,0.00056788,14]
[321233058,1712004642057,-150.0,0.00056788,14]
[321233059,1712004642067,-300.0,0.00056794,14]
[321233060,1712004642076,-150.0,0.00056797,14]
[321233061,1712004642086,-150.0,0.00056799,14]
[321233062,1712004642096,-150.0,0.00056802,14]
[321233063,1712004642107,-1500.0,0.0005681,14]
[321233064,1712004642116,-150.0,0.0005681,14]
[321233065,1712004642126,-150.0,0.00056813,14]
[321233066,1712004642136,-315.70727445,0.00056814,14]
[321233067,1712004642145,-150.0,0.00056815,14]
[321233068,1712004642155,-150.0,0.00056818,14]
[321233069,1712004642165,-150.0,0.00056821,14]
[321233070,1712004642175,-150.0,0.00056832,14]
[321233071,1712004642185,-300.0,0.00056836,14]
[321233072,1712004642195,-150.0,0.0005684,14]
[321233073,1712004642204,-150.0,0.00056842,14]
[321233074,1712004642214,-150.0,0.00056843,14]
[321233075,1712004642224,-150.0,0.00056852,14]
[321233076,1712004642234,-150.0,0.00056857,14]
[321233077,1712004642244,-150.0,0.0005686,14]
[321233078,1712004642253,-150.0,0.0005686,14]
[321233079,1712004642263,-150.0,0.00056861,14]
[321233080,1712004642274,-150.0,0.00056862,14]
[321233081,1712004642284,-150.0,0.00056866,14]
[321233082,1712004642294,-150.0,0.00056867,14]
[321233083,1712004642303,-150.0,0.0005687,14]
[321233084,1712004642312,-150.0,0.0005688,14]
[321233085,1712004642323,-150.0,0.00056882,14]
[321233086,1712004642332,-150.0,0.00056882,14]
[321233087,1712004642341,-150.0,0.00056883,14]
[321233088,1712004642352,-150.0,0.00056888,14]
[321233090,1712004642361,-150.0,0.00056893,14]
[321233092,1712004642370,-150.0,0.00056894,14]
[321233094,1712004642385,-303.63488174,0.00056895,14]
[321233096,1712004642394,-300.0,0.00056896,14]
[321233098,1712004642404,-150.0,0.00056897,14]
[321233099,1712004642414,-150.0,0.00056898,14]
[321233100,1712004642425,-4200.0,0.000569,20]
[321233101,1712004642434,-150.0,0.00056904,14]
[321233102,1712004642444,-150.0,0.00056904,14]
[321233103,1712004642454,-300.0,0.00056905,14]
[321233104,1712004642465,-150.0,0.00056907,14]
[321233105,1712004642475,-300.0,0.00056908,14]
[321233106,1712004642484,-150.0,0.00056913,14]
[321233107,1712004642494,-150.0,0.00056913,14]
[321233108,1712004642503,-300.0,0.00056915,14]
[321233109,1712004642513,-150.0,0.00056918,14]
[321233110,1712004642523,-150.0,0.00056919,14]
[321233111,1712004642533,-300.0,0.00056922,14]
[321233112,1712004642545,-150.0,0.00056922,14]
[321233113,1712004642555,-300.0,0.00056925,14]
[321233114,1712004642565,-150.0,0.00056926,14]
[321233115,1712004642574,-150.0,0.00056928,14]
[321233116,1712004642583,-150.0,0.00056928,14]
[321233117,1712004642593,-150.0,0.00056929,14]
[321233118,1712004642604,-150.0,0.00056936,14]
[321233119,1712004642614,-150.0,0.00056937,14]
[321233120,1712004642623,-300.0,0.00056938,14]
[321233121,1712004642633,-150.0,0.00056942,14]
[321233122,1712004642643,-300.0,0.00056942,14]
[321233123,1712004642653,-218.26574632,0.00056947,14]
[321233124,1712004642663,-150.0,0.00056947,14]
[321233125,1712004642673,-150.0,0.00056947,14]
[321233126,1712004642683,-150.0,0.00056948,14]
[321233127,1712004642692,-150.0,0.00056949,14]
[321233128,1712004642703,-150.0,0.00056952,14]
[321233129,1712004642712,-300.0,0.0005696,14]
[321233130,1712004642723,-150.0,0.00056969,14]
[321233131,1712004642733,-150.0,0.00056969,14]
[321233132,1712004642743,-150.0,0.00056975,14]
[321233133,1712004642754,-150.0,0.00056977,14]
[321233134,1712004642764,-150.0,0.00056977,14]
[321233135,1712004642774,-150.0,0.00056981,14]
[321233136,1712004642784,-150.0,0.00056985,14]
[321233137,1712004642794,-500.0,0.00056986,120]
[321233138,1712004642803,-151.0,0.00056986,30]
[321233139,1712004642813,-151.0,0.00056986,120]
[321233140,1712004642823,-151.0,0.00056986,120]
[321233141,1712004642833,-151.0,0.00056986,120]
[321233142,1712004642843,-500.0,0.00056986,120]
[321233143,1712004642853,-5896.0,0.00056986,120]
[321233144,1712004642862,-7900.54,0.00056986,120]
[321233145,1712004642871,-500.0,0.00056986,120]
[321233146,1712004642881,-1088.97,0.00056986,120]
[321233147,1712004642892,-352.315462,0.00056986,120]
[321233148,1712004642901,-352.315462,0.00056986,120]
[321233149,1712004642911,-21137.28,0.00056986,120]
[321233150,1712004642921,-500.0,0.00056986,120]
[321233151,1712004642931,-150.0,0.00056987,14]
[321233152,1712004642940,-150.0,0.00056991,14]
[321233153,1712004642950,-1429.25000458,0.00056992,35]
[321233154,1712004642960,-150.0,0.00056994,14]
[321233155,1712004642970,-300.0,0.00056994,14]
[321233156,1712004642979,-150.0,0.00056995,14]
[321233157,1712004642989,-150.0,0.00056995,14]
[321233158,1712004643001,-150.0,0.00056996,14]
[321233159,1712004643012,-150.0,0.00056999,14]
[321233160,1712004643022,-3299.29637658,0.00057,2]
[321233161,1712004643033,-7896.5233107,0.00057029,2]
[321233162,1712004643044,-2000.0,0.00057116,15]
[321233163,1712004643054,-200.0,0.00057116,15]
[321233164,1712004643065,-131255.0862923,0.00057141,2]
[321233165,1712004643075,-352.315462,0.00057141,120]
[321233166,1712004643085,-352.315462,0.00057141,120]
[321233167,1712004643096,-6216.4265008,0.0005718,2]
[321233168,1712004643107,-15095.41903,0.0005718,2]
[321233169,1712004643116,-151.0,0.00057219,120]
[321233170,1712004643126,-151.0,0.00057219,30]
[321233171,1712004643136,-151.0,0.00057219,120]
[321233172,1712004643146,-151.0,0.00057219,120]
[321233173,1712004643156,-151.0,0.00057219,120]
[321233174,1712004643167,-208.83766759,0.00057258,4]
[321233175,1712004643177,-548.73636979,0.00057258,4]
[321233176,1712004643187,-445.45527983,0.00057258,4]
[321233177,1712004643196,-410.59947216,0.00057258,4]
[321233178,1712004643206,-186.45093788,0.00057258,4]
[321233179,1712004643215,-343.19395664,0.00057258,4]
[321233180,1712004643224,-3762.46207832,0.00057259,40]
[321233181,1712004643232,-500.0,0.0005726,120]
[321233182,1712004643241,-500.0,0.0005726,120]
[321233183,1712004643251,-5896.0,0.0005726,120]
[321233184,1712004643261,-7900.54,0.0005726,120]
[321233185,1712004643270,-500.0,0.0005726,120]
[321233186,1712004643279,-1088.97,0.0005726,120]
[321233187,1712004643288,-21137.28,0.0005726,120]
[321233188,1712004643297,-500.0,0.0005726,120]
[321233189,1712004643306,-510.05943122,0.00057434,2]
[321233190,1712004643314,-207.4234253,0.00057434,120]
[321233191,1712004643324,-649.23138142,0.00057434,2]
[321233192,1712004643332,-224.07354535,0.00057434,2]
[321233193,1712004643341,-1521.29171865,0.00057444,2]
[321233194,1712004643351,-1000.20046963,0.000575,2]
[321233195,1712004643361,-150.0,0.00057515,120]
[321233196,1712004643374,-500.0,0.00057534,120]
[321233197,1712004643382,-494.28483109,0.00057534,120]
[321233198,1712004643391,-5896.0,0.00057534,120]
[321233199,1712004643401,-7900.54,0.00057534,120]
[321233200,1712004643411,-492.91687437,0.00057534,120]
[321233201,1712004643420,-1088.97,0.00057534,120]
[321233202,1712004643429,-352.315462,0.00057534,120]
[321233203,1712004643439,-352.315462,0.00057534,120]
[321233204,1712004643449,-21137.28,0.00057534,120]
[321233205,1712004643460,-500.0,0.00057534,120]
[321233206,1712004643470,-264.90152903,0.00057554,14]
[321233207,1712004643480,-300.0,0.00057562,30]
[321233208,1712004643489,-302.0,0.00057623,4]
[321233209,1712004643499,-209.0,0.0005763,30]
[321233210,1712004643508,-159.53,0.00057644,2]
[321233211,1712004643517,-2000.0,0.00057687,15]
[321233212,1712004643526,-200.0,0.00057687,15]
[321233213,1712004643535,-151.0,0.00057699,120]
[321233214,1712004643545,-1000.0,0.000577,7]
[321233215,1712004643555,-152.46,0.000577,9]
[321233216,1712004643564,-152.46,0.000577,9]
[321233217,1712004643574,-152.46,0.000577,9]
[321233218,1712004643583,-152.46,0.000577,9]
[321233219,1712004643592,-152.46,0.000577,9]
[321233220,1712004643602,-152.46,0.000577,9]
[321233221,1712004643611,-152.46,0.000577,9]
[321233222,1712004643621,-152.46,0.000577,9]
[321233223,1712004643630,-152.46,0.000577,9]
[321233224,1712004643640,-152.46,0.000577,9]
[321233225,1712004643650,-152.46,0.000577,9]
[321233226,1712004643660,-152.46,0.000577,9]
[321233227,1712004643669,-153.75644146,0.00057753,120]
[321233228,1712004643679,-500.0,0.00057808,120]
[321233229,1712004643688,-151.0,0.00057808,120]
[321233230,1712004643698,-151.0,0.00057808,120]
[321233231,1712004643707,-151.0,0.00057808,120]
[321233232,1712004643716,-169.581457,0.00057808,120]
[321233233,1712004643726,-5896.0,0.00057808,120]
[321233234,1712004643736,-7900.54,0.00057808,120]
[321233235,1712004643746,-1088.97,0.00057808,120]
[321233236,1712004643756,-21137.28,0.00057808,120]
[321233237,1712004643766,-500.0,0.00057808,120]
[321233238,1712004643775,-5600.0,0.000579,21]
[321233239,1712004643785,-435.56,0.00057929,2]
[321233240,1712004643795,-150.0,0.00057935,14]
[321233241,1712004643805,-168.69747162,0.00057988,58]
[321233242,1712004643814,-150.0,0.00057992,14]
[321233243,1712004643824,-151.0,0.00058,120]
[321233244,1712004643836,-150.0,0.00058035,14]
[321233245,1712004643846,-150.0,0.00058053,14]
[321233246,1712004643857,-500.0,0.00058082,120]
[321233247,1712004643867,-151.0,0.00058082,120]
[321233248,1712004643877,-233.185651,0.00058082,120]
[321233249,1712004643886,-151.0,0.00058082,120]
[321233250,1712004643896,-5896.0,0.00058082,120]
[321233251,1712004643905,-7900.54,0.00058082,120]
[321233252,1712004643915,-1088.97,0.00058082,120]
[321233253,1712004643924,-352.315462,0.00058082,120]
[321233254,1712004643934,-352.315462,0.00058082,120]
[321233255,1712004643943,-21137.28,0.00058082,120]
[321233256,1712004643953,-500.0,0.00058082,120]
[321233257,1712004643962,-159819.0,0.00058082,15]
[321233258,1712004643972,-150.0,0.00058088,14]
[321233259,1712004643981,-804.85,0.000581,30]
[321233260,1712004643991,-400.8,0.000581,14]
[321233261,1712004644001,-684.37,0.000581,30]
[321233262,1712004644011,-150.0,0.00058188,14]
[321233263,1712004644020,-150.0,0.00058214,14]
[321233264,1712004644030,-150.0,0.00058258,14]
[321233265,1712004644039,-2000.0,0.00058264,15]
[321233266,1712004644049,-200.0,0.00058264,15]
[321233267,1712004644058,-150.0,0.00058299,14]
[321233268,1712004644067,-150.0,0.00058306,14]
[321233269,1712004644078,-150.0,0.00058317,14]